[Event "GER-ch Youth U12 2019"]
[Site "Willingen"]
[Date "2019.06.15"]
[Round "9.9"]
[White "Meuer, David"]
[Black "Deuer, Marius"]
[Result "0-1"]
[ECO "C47"]
[WhiteElo "1549"]
[BlackElo "1961"]
[Annotator "NA"]
[PlyCount "86"]
[EventDate "2019.06.07"]
[EventType "swiss"]
[EventRounds "9"]
[EventCountry "GER"]
[SourceTitle "playchess.com"]
[Source "ChessBase"]
[SourceQuality "1"]
[TimeControl "40/4500+30:900+30"]

1. e4 {[%emt 0:00:00]} e5 {[%emt 0:00:00]} 2. Nf3 {[%emt 0:00:00]} Nc6 {[%emt 0:00:00]} 3. Nc3 {[%emt 0:00:00]} Nf6 {[%emt 0:00:00]} 4. d4 {[%emt 0:00:00]} exd4 {[%emt 0:00:00]} 5. Nxd4 {[%emt 0:00:00]} Bb4 {[%emt 0:00:00]} 6. Nxc6 {[%emt 0:00:00]} bxc6 {[%emt 0:00:00]} 7. Bd3 {[%emt 0:00:00]} d5 {[%emt 0:00:00]} 8. exd5 {[%emt 0:00:00]} O-O {[%emt 0:00:00]} 9. O-O {[%emt 0:00:00]} cxd5 {[%emt 0:00:00]} 10. Qf3 {[%emt 0:00:00]} c6 {[%emt 0:00:00]} 11. Bg5 {[%emt 0:00:00]} Bd6 {[%emt 0:00:00]} 12. Rae1 {[%emt 0:00:00]} Rb8 {[%emt 0:00:00]} 13. Nd1 {[%emt 0:02:01]} Be6 {[%emt 0:00:00]} 14. b3 {[%emt 0:12:41]} Be7 {[%emt 0:16:15]} 15. Ne3 {[%emt 0:10:18]} g6 {[%emt 0:05:33]} 16. c4 {[%emt 0:06:16]} Rc8 {[%emt 0:08:06]} 17. Rc1 {[%emt 0:06:14]} d4 {[%emt 0:04:24]} 18. Bxf6 {[%emt 0:08:53]} Bxf6 {[%emt 0:00:24]} 19. Nc2 {[%emt 0:00:56]} c5 {[%emt 0:03:33]} 20. Ne1 {[%emt 0:04:36]} Bg5 {[%emt 0:04:08]} 21. Rd1 {[%emt 0:05:37]} Qa5 {[%emt 0:04:00]} 22. Bb1 {[%emt 0:00:56]} Rfe8 {[%emt 0:02:47]} 23. Qg3 {[%emt 0:06:22]} Bd2 {[%emt 0:03:38]} 24. Nf3 {[%emt 0:01:50]} Bh6 {[%emt 0:02:35]} 25. Qh4 {[%emt 0:01:42]} Kg7 {[%emt 0:01:07]} 26. g4 {[%emt 0:07:53]} Bf4 {[%emt 0:02:32]} 27. Ng5 {[%emt 0:01:20]} h6 {[%emt 0:02:37]} 28. Nxe6+ {[%emt 0:00:41]} fxe6 {[%emt 0:03:19]} 29. Qh3 {[%emt 0:00:31]} Qb6 {[%emt 0:03:23]} 30. Qd3 {[%emt 0:01:13]} e5 {[%emt 0:00:10]} 31. Rfe1 {[%emt 0:00:34]} Qe6 {[%emt 0:03:32]} 32. h3 {[%emt 0:01:38]} Rf8 {[%emt 0:03:42]} 33. Qe4 {[%emt 0:02:20]} Rc6 {[%emt 0:02:45]} 34. Kg2 {[%emt 0:02:08]} Qf6 {[%emt 0:02:11]} 35. Rd3 {[%emt 0:01:10]} Be3 {[%emt 0:03:51]} 36. Rf1 {[%emt 0:03:56]} Rb6 {[%emt 0:02:41]} 37. Rdd1 {[%emt 0:00:56]} Bf4 {[%emt 0:01:25]} 38. Rd3 {[%emt 0:00:26]} Qh4 {[%emt 0:00:53]} 39. Rf3 {[%emt 0:00:47]} Rbf6 {[%emt 0:02:46]} 40. Qb7+ {[%emt 0:00:31]} R8f7 {[%emt 0:01:02]} 41. Qe4 {[%emt 0:00:00]} Qg5 {[%emt 0:00:00]} 42. Rg1 {[%emt 0:00:00]} Qh4 {[%emt 0:00:00]} 43. a3 {normal} Be3 {[%emt 0:00:00] normal} 0-1

[Event "GER-ch Youth U12 2019"]
[Site "Willingen"]
[Date "2019.06.15"]
[Round "9.10"]
[White "Freude, Max"]
[Black "Mueller, Maximilian"]
[Result "1/2-1/2"]
[ECO "C05"]
[WhiteElo "1707"]
[BlackElo "1606"]
[Annotator "NA"]
[PlyCount "42"]
[EventDate "2019.06.07"]
[EventType "swiss"]
[EventRounds "9"]
[EventCountry "GER"]
[SourceTitle "playchess.com"]
[Source "ChessBase"]
[SourceQuality "1"]
[TimeControl "40/4500+30:900+30"]

1. e4 {[%emt 0:00:00]} e6 {[%emt 0:00:00]} 2. d4 {[%emt 0:00:00]} d5 {[%emt 0:00:00]} 3. Nd2 {[%emt 0:00:00]} Nf6 {[%emt 0:00:00]} 4. e5 {[%emt 0:00:00]} Nfd7 {[%emt 0:00:00]} 5. Bd3 {[%emt 0:00:00]} c5 {[%emt 0:00:00]} 6. c3 {[%emt 0:00:00]} Nc6 {[%emt 0:00:00]} 7. Ne2 {[%emt 0:00:00]} Qb6 {[%emt 0:00:00]} 8. Nf3 {[%emt 0:00:00]} cxd4 {[%emt 0:00:00]} 9. cxd4 {[%emt 0:00:00]} f6 {[%emt 0:00:00]} 10. exf6 {[%emt 0:00:00]} Nxf6 {[%emt 0:00:00]} 11. O-O {[%emt 0:00:00]} Bd6 {[%emt 0:00:00]} 12. a3 {[%emt 0:08:03]} O-O {[%emt 0:00:00]} 13. Qc2 {[%emt 0:07:16]} h6 {[%emt 0:00:00]} 14. Bd2 {[%emt 0:01:45]} Bd7 {[%emt 0:00:00]} 15. Rae1 {[%emt 0:04:15]} Rac8 {[%emt 0:00:00]} 16. Qb1 {[%emt 0:05:49]} Rc7 {[%emt 0:04:33]} 17. Kh1 {[%emt 0:05:34]} Rfc8 {[%emt 0:03:32]} 18. Nf4 {[%emt 0:02:37]} Re8 {[%emt 0:01:37]} 19. Bg6 {[%emt 0:12:17]} Re7 {[%emt 0:03:15]} 20. Be3 {[%emt 0:03:18]} Be8 {[%emt 0:06:19]} 21. Bxe8 {[%emt 0:04:38]} Rxe8 {[%emt 0:00:24] normal} 1/2-1/2

[Event "GER-ch Youth U12 2019"]
[Site "Willingen"]
[Date "2019.06.15"]
[Round "9.11"]
[White "Hecht, Jonas Christian"]
[Black "Bock, Marlon"]
[Result "1-0"]
[ECO "C44"]
[WhiteElo "1726"]
[BlackElo "1596"]
[Annotator "NA"]
[PlyCount "42"]
[EventDate "2019.06.07"]
[EventType "swiss"]
[EventRounds "9"]
[EventCountry "GER"]
[SourceTitle "playchess.com"]
[Source "ChessBase"]
[SourceQuality "1"]
[TimeControl "40/4500+30:900+30"]

1. e4 {[%emt 0:00:00]} e5 {[%emt 0:00:00]} 2. Nf3 {[%emt 0:00:00]} Nc6 {[%emt 0:00:00]} 3. d4 {[%emt 0:00:00]} exd4 {[%emt 0:00:00]} 4. Nxd4 {[%emt 0:00:00]} Bb4+ {[%emt 0:00:00]} 5. c3 {[%emt 0:00:00]} Bc5 {[%emt 0:00:00]} 6. Nxc6 {[%emt 0:00:00]} bxc6 {[%emt 0:00:00]} 7. Bc4 {[%emt 0:00:00]} d6 {[%emt 0:00:00]} 8. O-O {[%emt 0:00:00]} Nf6 {[%emt 0:00:00]} 9. Bg5 {[%emt 0:00:00]} h6 {[%emt 0:02:42]} 10. Bh4 {[%emt 0:00:00]} O-O {[%emt 0:05:23]} 11. Qf3 {[%emt 0:00:00]} g5 {[%emt 0:11:17]} 12. Bg3 {[%emt 0:00:00]} Be6 {[%emt 0:02:55]} 13. Nd2 {[%emt 0:01:19]} Kh8 {[%emt 0:05:52]} 14. e5 {[%emt 0:11:49]} Nh7 {[%emt 0:09:27]} 15. Qxc6 {[%emt 0:01:24]} h5 {[%emt 0:04:03]} 16. h4 {[%emt 0:04:44]} gxh4 {[%emt 0:04:29]} 17. Bf4 {[%emt 0:01:25]} h3 {[%emt 0:02:46]} 18. Bxe6 {[%emt 0:04:33]} fxe6 {[%emt 0:00:10]} 19. g3 {[%emt 0:01:18]} h4 {[%emt 0:05:22]} 20. b4 {[%emt 0:09:24]} hxg3 {[%emt 0:03:56]} 21. Bxg3 {[%emt 0:00:28]} Bb6 {[%emt 0:01:35] normal} 1-0

[Event "GER-ch Youth U12 2019"]
[Site "Willingen"]
[Date "2019.06.15"]
[Round "9.12"]
[White "Bungarten, Jona"]
[Black "Heinrich, John"]
[Result "1-0"]
[ECO "B40"]
[WhiteElo "1642"]
[BlackElo "1695"]
[Annotator "NA"]
[PlyCount "38"]
[EventDate "2019.06.07"]
[EventType "swiss"]
[EventRounds "9"]
[EventCountry "GER"]
[SourceTitle "playchess.com"]
[Source "ChessBase"]
[SourceQuality "1"]
[TimeControl "40/4500+30:900+30"]

1. e4 {[%emt 0:00:00]} c5 {[%emt 0:00:00]} 2. Nf3 {[%emt 0:00:00]} e6 {[%emt 0:00:00]} 3. d4 {[%emt 0:00:00]} cxd4 {[%emt 0:00:00]} 4. c3 {[%emt 0:00:00]} dxc3 {[%emt 0:00:00]} 5. Nxc3 {[%emt 0:00:00]} a6 {[%emt 0:00:00]} 6. Bc4 {[%emt 0:00:00]} Ne7 {[%emt 0:00:00]} 7. Bg5 {[%emt 0:00:00]} f6 {[%emt 0:00:00]} 8. Be3 {[%emt 0:00:00]} b5 {[%emt 0:00:00]} 9. Bb3 {[%emt 0:00:00]} Bb7 {[%emt 0:00:00]} 10. O-O {[%emt 0:00:00]} Ng6 {[%emt 0:00:00]} 11. Qe2 {[%emt 0:00:00]} Be7 {[%emt 0:00:00]} 12. Rfd1 {[%emt 0:00:00]} Qa5 {[%emt 0:00:00]} 13. Rac1 {[%emt 0:00:00]} O-O {[%emt 0:00:00]} 14. h4 {[%emt 0:03:03]} f5 {[%emt 0:22:00]} 15. exf5 {[%emt 0:08:08]} Rxf5 {[%emt 0:02:25]} 16. Nd4 {[%emt 0:03:08]} Rf8 {[%emt 0:07:37]} 17. h5 {[%emt 0:01:16]} Nh4 {[%emt 0:04:09]} 18. Qg4 {[%emt 0:04:24]} Kh8 {[%emt 0:06:47]} 19. h6 {[%emt 0:01:34] normal} g6 {[%emt 0:05:27] normal} 1-0

[Event "GER-ch Youth U12 2019"]
[Site "Willingen"]
[Date "2019.06.15"]
[Round "9.13"]
[White "Rempe, Jonas"]
[Black "Winkler, Yonathan"]
[Result "1-0"]
[ECO "B28"]
[WhiteElo "1781"]
[BlackElo "1536"]
[Annotator "NA"]
[PlyCount "50"]
[EventDate "2019.06.07"]
[EventType "swiss"]
[EventRounds "9"]
[EventCountry "GER"]
[SourceTitle "playchess.com"]
[Source "ChessBase"]
[SourceQuality "1"]
[TimeControl "40/4500+30:900+30"]

1. e4 {[%emt 0:00:00]} c5 {[%emt 0:00:00]} 2. Nf3 {[%emt 0:00:00]} a6 {[%emt 0:00:00]} 3. Nc3 {[%emt 0:00:00]} b5 {[%emt 0:00:00]} 4. d4 {[%emt 0:00:00]} cxd4 {[%emt 0:00:00]} 5. Nxd4 {[%emt 0:00:00]} e5 {[%emt 0:00:00]} 6. Nb3 {[%emt 0:00:00]} Nf6 {[%emt 0:00:00]} 7. Bd3 {[%emt 0:00:00]} Bb7 {[%emt 0:00:00]} 8. Bg5 {[%emt 0:00:59]} Be7 {[%emt 0:00:00]} 9. Bxf6 {[%emt 0:07:03]} Bxf6 {[%emt 0:01:51]} 10. Qe2 {[%emt 0:02:02]} Qc7 {[%emt 0:10:52]} 11. O-O-O {[%emt 0:00:43]} b4 {[%emt 0:04:46]} 12. Nd5 {[%emt 0:00:53]} Bxd5 {[%emt 0:05:48]} 13. exd5 {[%emt 0:00:03]} a5 {[%emt 0:05:53]} 14. Kb1 {[%emt 0:03:44]} a4 {[%emt 0:01:49]} 15. Nd4 {[%emt 0:00:10]} a3 {[%emt 0:01:48]} 16. Nb5 {[%emt 0:00:32]} Qc5 {[%emt 0:03:19]} 17. d6 {[%emt 0:03:50]} Na6 {[%emt 0:08:14]} 18. Be4 {[%emt 0:01:56]} Rb8 {[%emt 0:02:52]} 19. Rd5 {[%emt 0:01:47]} Qb6 {[%emt 0:02:39]} 20. Bf5 {[%emt 0:03:21]} Nc5 {[%emt 0:03:11]} 21. Nc7+ {[%emt 0:01:32]} Kf8 {[%emt 0:04:49]} 22. Qe3 {[%emt 0:04:06]} Na4 {[%emt 0:03:21]} 23. Rb5 {[%emt 0:00:42]} Qxb5 {[%emt 0:01:54]} 24. Nxb5 {[%emt 0:00:01]} Rxb5 {[%emt 0:00:09]} 25. Qa7 {[%emt 0:00:24]} Nc3+ {[%emt 0:00:54] normal} 1-0

[Event "GER-ch Youth U12 2019"]
[Site "Willingen"]
[Date "2019.06.15"]
[Round "9.14"]
[White "Zweigait, Leon"]
[Black "Tomasjan, Samuel"]
[Result "0-1"]
[ECO "A13"]
[WhiteElo "1474"]
[BlackElo "1476"]
[Annotator "NA"]
[PlyCount "40"]
[EventDate "2019.06.07"]
[EventType "swiss"]
[EventRounds "9"]
[EventCountry "GER"]
[SourceTitle "playchess.com"]
[Source "ChessBase"]
[SourceQuality "1"]
[TimeControl "40/4500+30:900+30"]

1. Nf3 {[%emt 0:00:00]} Nf6 {[%emt 0:00:00]} 2. c4 {[%emt 0:00:00]} e6 {[%emt 0:00:00]} 3. g3 {[%emt 0:00:00]} d5 {[%emt 0:00:00]} 4. Bg2 {[%emt 0:00:00]} dxc4 {[%emt 0:00:00]} 5. Qa4+ Nbd7 {[%emt 0:00:00]} 6. Na3 {[%emt 0:00:00]} a6 {[%emt 0:00:00]} 7. O-O {[%emt 0:00:00]} c6 {[%emt 0:00:00]} 8. Qxc4 {[%emt 0:00:00]} Bxa3 {[%emt 0:00:02]} 9. bxa3 {[%emt 0:00:00]} Qc7 {[%emt 0:00:45]} 10. Bb2 {[%emt 0:00:00]} b5 {[%emt 0:02:22]} 11. Qc2 {[%emt 0:00:00]} Bb7 {[%emt 0:01:04]} 12. Rac1 {[%emt 0:00:00]} Rc8 {[%emt 0:01:43]} 13. d4 {[%emt 0:00:00]} Nb6 {[%emt 0:07:06]} 14. Ne5 {[%emt 0:00:00]} Nfd7 {[%emt 0:00:36]} 15. Bxc6 {[%emt 0:00:00]} O-O {[%emt 0:13:52]} 16. Be4 {[%emt 0:00:00]} Qxc2 {[%emt 0:10:09]} 17. Bxc2 {[%emt 0:00:00]} Nxe5 {[%emt 0:00:11]} 18. dxe5 {[%emt 0:00:00]} Nc4 {[%emt 0:00:27]} 19. Bd4 {[%emt 0:00:00] normal} Rfd8 {[%emt 0:03:27]} 20. e3 {[%emt 0:00:00] normal} Nd2 {[%emt 0:02:44] normal} 0-1

[Event "GER-ch Youth U12 2019"]
[Site "Willingen"]
[Date "2019.06.15"]
[Round "9.15"]
[White "Schwartz, Oliver"]
[Black "Krueger, Arthur"]
[Result "1/2-1/2"]
[ECO "C54"]
[WhiteElo "1616"]
[BlackElo "1613"]
[Annotator "NA"]
[PlyCount "51"]
[EventDate "2019.06.07"]
[EventType "swiss"]
[EventRounds "9"]
[EventCountry "GER"]
[SourceTitle "playchess.com"]
[Source "ChessBase"]
[SourceQuality "1"]
[TimeControl "40/4500+30:900+30"]

1. e4 {[%emt 0:00:00]} e5 {[%emt 0:00:00]} 2. Nf3 {[%emt 0:00:00]} Nc6 {[%emt 0:00:00]} 3. Bc4 {[%emt 0:00:00]} Bc5 {[%emt 0:00:00]} 4. c3 {[%emt 0:00:00]} Nf6 {[%emt 0:00:00]} 5. d3 {[%emt 0:00:00]} d6 {[%emt 0:00:00]} 6. Bb3 {[%emt 0:00:00]} h6 {[%emt 0:00:00]} 7. Nbd2 {[%emt 0:00:00]} O-O {[%emt 0:00:00]} 8. h3 {[%emt 0:00:00]} Be6 {[%emt 0:00:00]} 9. Bc2 {[%emt 0:00:00]} a5 {[%emt 0:00:00]} 10. Nf1 {[%emt 0:00:00]} Ne7 {[%emt 0:00:00]} 11. g4 {[%emt 0:03:35]} Nh7 {[%emt 0:03:13]} 12. Ng3 {[%emt 0:07:07]} Ng6 {[%emt 0:04:49]} 13. Nh5 {[%emt 0:27:45]} Ng5 {[%emt 0:06:01]} 14. Bxg5 {[%emt 0:12:38]} hxg5 {[%emt 0:02:01]} 15. a3 {[%emt 0:00:45]} Nh4 {[%emt 0:08:42]} 16. d4 {[%emt 0:07:06]} Nxf3+ {[%emt 0:06:38]} 17. Qxf3 {[%emt 0:00:21]} exd4 {[%emt 0:01:19]} 18. O-O-O {[%emt 0:01:28]} dxc3 {[%emt 0:09:22]} 19. Qxc3 {[%emt 0:00:42]} f6 {[%emt 0:03:05]} 20. f3 {[%emt 0:03:20]} b5 {[%emt 0:05:07]} 21. Qd2 {[%emt 0:02:18]} Qe8 {[%emt 0:06:08]} 22. Qd3 {[%emt 0:02:41]} Bc4 {[%emt 0:04:54]} 23. Qc3 {[%emt 0:00:23]} Qe5 {[%emt 0:02:03]} 24. Qd2 {[%emt 0:01:52]} Rfb8 {[%emt 0:07:51]} 25. h4 {[%emt 0:00:50]} a4 {[%emt 0:01:30]} 26. hxg5 {[%emt 0:01:15] normal} 1/2-1/2